bitfinex/quotes_ETHUSD_20250426
["timestamp","ask_amount","ask_price","bid_price","bid_amount"]
[1745685558616,21.311,1802.3,1802.2,8.40303457]
[1745685558851,4.642,1802.3,1802.2,8.40303457]
[1745685560648,4.642,1802.3,1802.2,7.7232552]
[1745685568437,4.642,1802.3,1802.2,6.9410552]
[1745685568911,4.642,1802.3,1802.2,0.12391726]
[1745685569107,10.94386584,1802.3,1802.2,0.12391726]
[1745685569315,11.62364521,1802.3,1802.2,0.12391726]
[1745685569623,11.62364521,1802.3,1801.6,5.55046853]
[1745685569624,0.7534,1802.0,1801.6,5.55046853]
[1745685569823,4.64,1801.9,1801.6,5.55046853]
[1745685570023,4.64,1801.9,1801.7,5.55030464]
[1745685577085,4.64,1801.9,1801.8,0.11227263]
[1745685578183,4.64,1801.9,1801.8,5.66227818]
[1745685578385,4.64,1801.9,1801.8,0.11227263]
[1745685579985,4.64,1801.9,1801.8,5.66227818]
[1745685580487,4.64,1801.9,1801.8,6.78351421]
[1745685586176,4.64,1801.9,1801.8,5.66227818]
[1745685611421,6.01,1802.3,1802.2,5.54877372]
[1745685611621,10.65,1802.3,1802.2,5.54877372]
[1745685611824,10.65,1802.3,1802.2,5.66247779]
[1745685612224,10.96163022,1802.3,1802.2,5.66247779]
[1745685612519,12.91451712,1802.3,1802.2,0.11370407]
[1745685612723,11.71521431,1802.3,1801.8,5.54984367]
[1745685613033,0.31163022,1802.2,1801.9,5.66189345]
[1745685613699,0.31163022,1802.2,1802.1,5.54908162]
[1745685614227,0.31163022,1802.2,1802.1,0.11227241]
[1745685614925,0.31163022,1802.2,1801.9,5.54951754]
[1745685615222,0.31163022,1802.2,1802.0,0.11227241]
[1745685615723,16.95205366,1802.3,1802.0,0.11227241]
[1745685617324,0.31140121,1802.2,1802.0,0.11227241]
[1745685618327,0.31140121,1802.1,1802.0,0.11227241]
[1745685619916,1.10250121,1802.1,1801.8,5.54986849]
[1745685620125,1.10250121,1802.1,1802.0,0.11203369]
[1745685620630,1.10250121,1802.1,1801.8,5.54976021]
[1745685620803,1.10250121,1802.1,1802.0,0.11203369]
[1745685621006,0.7911,1802.1,1801.8,5.54976021]
[1745685621207,0.7911,1802.1,1802.0,0.11203369]
[1745685621399,0.7911,1802.1,1801.8,5.54976021]
[1745685621599,0.7911,1802.1,1802.0,0.11203369]
[1745685621824,0.7911,1802.1,1801.8,5.54976021]
[1745685622356,0.7911,1802.1,1801.9,0.11203369]
[1745685622640,0.7911,1802.1,1801.9,5.66150834]
[1745685622848,0.7911,1802.2,1801.9,5.66150834]
[1745685623204,4.95146699,1802.1,1801.9,5.66150834]
[1745685623407,4.95146699,1802.1,1802.0,5.54938956]
[1745685623600,4.95146699,1802.1,1802.0,5.66166187]
[1745685624236,4.64,1802.1,1802.0,5.66166187]
[1745685626148,4.95152335,1802.1,1802.0,0.11227231]
[1745685627448,4.95152335,1802.1,1802.0,0.11173542]
[1745685627762,4.95152335,1802.1,1801.8,5.54981939]
[1745685627936,4.95152335,1802.1,1802.0,0.11173542]
[1745685628337,4.95152335,1802.1,1801.8,5.54981939]
[1745685628864,4.95152335,1802.1,1801.9,0.11173542]
[1745685629243,0.31152335,1802.0,1801.8,5.54981939]
[1745685630077,4.64,1802.1,1801.8,5.54981939]
[1745685631378,4.64,1802.1,1801.7,6.31835161]
[1745685631879,0.31153623,1802.0,1801.8,5.54995843]
[1745685632078,5.55012033,1801.8,1801.5,5.05252256]
[1745685632285,4.64,1801.7,1801.3,0.758]
[1745685632587,6.33615087,1801.6,1801.2,5.55164335]
[1745685633185,0.31133863,1801.5,1801.2,11.10327389]
[1745685633480,0.31133863,1801.5,1801.2,6.74275793]
[1745685633642,0.7853,1801.6,1801.3,5.55152854]
[1745685634280,0.7853,1801.6,1801.2,6.74278354]
[1745685634444,1.09616006,1801.6,1801.2,6.74278354]
[1745685634644,0.31086006,1801.6,1801.2,8.03726828]
[1745685634846,11.42188409,1801.7,1801.3,1.55832683]
[1745685635143,11.42188409,1801.7,1801.3,0.7546]
[1745685635378,11.42188409,1801.7,1801.4,5.55121458]
[1745685635779,11.42188409,1801.7,1801.3,6.30593681]
[1745685636347,16.97224117,1801.7,1801.3,6.30593681]
[1745685636549,11.42188409,1801.7,1801.3,6.30593681]
[1745685636780,11.42188409,1801.7,1801.3,0.7546]
[1745685636981,11.42188409,1801.7,1801.3,6.30588094]
[1745685637282,11.42188409,1801.7,1801.4,0.10648933]
[1745685639755,16.97236239,1801.7,1801.4,0.10648933]
[1745685640091,11.42188409,1801.7,1801.4,0.10648933]
[1745685640788,5.55062368,1801.6,1801.4,0.10648933]
[1745685640949,5.55062368,1801.6,1801.2,5.55171613]
[1745685641153,16.97239478,1801.7,1801.2,5.55163889]
[1745685641367,16.97239478,1801.7,1801.3,0.10637006]
[1745685641593,5.55064607,1801.6,1801.3,0.10637006]
[1745685642807,5.55123792,1801.4,1801.3,0.10637006]
[1745685642991,5.99938409,1801.4,1801.1,0.05]
[1745685643306,4.64,1801.3,1801.1,5.6021374]
[1745685643666,4.64,1801.3,1801.2,5.55185431]
[1745685645494,4.64,1801.3,1801.1,6.79523021]
[1745685645695,4.64,1801.3,1801.2,5.55185431]
[1745685651093,4.64,1801.3,1801.2,6.34855431]
[1745685652379,4.64,1801.3,1801.2,6.45856139]
[1745685652579,4.64,1801.3,1801.2,7.85194451]
[1745685655279,4.64,1801.3,1801.2,10.85194451]
[1745685657609,4.64,1801.3,1801.2,7.85194451]
[1745685665433,4.64,1801.3,1801.2,5.66186139]
[1745685671122,4.641,1801.4,1801.3,5.55136082]
[1745685671439,4.641,1801.4,1801.3,5.66017523]
[1745685671937,4.641,1801.4,1801.3,0.10881441]
[1745685672136,4.641,1801.4,1801.3,5.66036051]
[1745685672332,4.641,1801.4,1801.3,0.10881441]
[1745685672535,4.641,1801.4,1801.3,5.66036051]
[1745685673140,4.641,1801.4,1801.3,0.10881441]
[1745685673440,11.82561268,1801.4,1801.1,0.05]
[1745685673743,11.82561268,1801.4,1801.2,0.10923185]
[1745685673744,0.7776,1801.3,1801.2,0.10923185]
[1745685674233,1.08893476,1801.3,1801.2,0.10923185]
[1745685677035,0.7776,1801.3,1801.2,5.66108616]
[1745685677446,11.18482409,1801.4,1801.3,5.5515461]
[1745685677810,11.18482409,1801.4,1801.3,5.66077795]
[1745685678248,10.64038409,1801.4,1801.3,5.66077795]
[1745685679345,10.64038409,1801.4,1801.3,6.45287795]
[1745685681343,4.641,1801.4,1801.3,6.45287795]
[1745685685211,6.79108409,1801.9,1801.8,5.55000555]
[1745685685573,5.74279076,1801.9,1801.8,5.65947608]
[1745685685713,4.95109076,1801.9,1801.8,5.65947608]
[1745685685918,4.64,1801.9,1801.8,6.8540216]
[1745685691319,4.64,1801.9,1801.8,5.65947608]
[1745685705779,5.4168,1801.9,1801.8,0.10947053]
[1745685706573,5.4168,1801.9,1801.8,5.65947608]
[1745685706948,5.4168,1801.9,1801.8,0.10947053]
[1745685707671,5.4168,1801.9,1801.8,5.65947608]
[1745685709974,5.4168,1801.9,1801.8,0.10947053]
[1745685711277,5.72788105,1801.9,1801.8,0.10947053]
[1745685711482,6.30066916,1801.9,1801.8,0.10947053]
[1745685711690,11.8503667,1801.9,1801.3,0.7664]
[1745685711860,0.8105,1801.8,1801.4,5.65593415]
[1745685712062,0.31108105,1801.7,1801.4,5.65586894]
[1745685712384,0.31108105,1801.7,1801.4,11.20690468]
[1745685712551,0.31108105,1801.7,1801.4,5.65586894]
[1745685712752,0.31108105,1801.7,1801.6,5.55062166]
[1745685712953,10.63938409,1801.9,1801.7,5.55031359]
[1745685713156,4.64,1801.9,1801.8,5.55000555]
[1745685713357,4.64,1801.9,1801.8,5.65607733]
[1745685717146,0.31113741,1802.1,1801.9,5.54956046]
[1745685717342,4.638,1802.0,1801.9,5.54956046]
[1745685717573,4.94913741,1802.0,1801.9,5.54956046]
[1745685718084,4.638,1802.0,1801.9,5.54956046]
[1745685720748,4.638,1802.0,1801.8,5.55000555]
[1745685721046,4.638,1802.0,1801.8,11.09984311]
[1745685721325,4.638,1802.0,1801.9,5.54969754]
[1745685722332,4.94921896,1802.0,1801.9,5.54969754]
[1745685727139,4.94921896,1802.0,1801.9,5.65463663]
[1745685729035,4.94921896,1802.0,1801.9,0.10493909]
[1745685729238,4.94921896,1802.0,1801.8,11.09987592]
[1745685729444,4.94921896,1802.0,1801.9,5.65463663]
[1745685731346,4.638,1802.0,1801.9,5.65463663]
[1745685737963,4.638,1802.0,1801.9,0.10493909]
[1745685738254,5.1018,1802.0,1801.8,5.54984133]
[1745685738416,12.33107718,1802.2,1801.8,5.54984133]
[1745685738417,4.637,1801.9,1801.8,5.54984133]
[1745685742058,4.637,1801.9,1801.8,5.65484]
[1745685742276,4.637,1801.9,1801.8,0.10499867]
[1745685742622,4.9484763,1801.9,1801.8,0.10499867]
[1745685742928,4.9484763,1801.9,1801.8,5.65500422]
[1745685745356,4.9484763,1801.9,1801.8,0.10499867]
[1745685746153,4.9484763,1801.9,1801.8,5.65500422]
[1745685747258,4.9484763,1801.9,1801.8,0.10499867]
[1745685748952,4.9484763,1801.9,1801.8,5.65500422]
[1745685750358,4.9484763,1801.9,1801.8,0.10499867]
[1745685750581,4.9484763,1801.9,1801.8,5.65500422]
[1745685750752,4.9484763,1801.9,1801.8,0.10499867]
[1745685751971,11.89434147,1801.9,1801.8,0.10499867]
[1745685752269,5.55075103,1801.6,1801.1,0.8419]
[1745685752437,4.637,1801.5,1801.2,5.6571428]
[1745685753723,4.94783897,1801.5,1801.2,5.6571428]
[1745685754431,4.94783897,1801.5,1801.2,0.1052967]
[1745685754633,10.49877627,1801.5,1801.2,0.1052967]
[1745685755038,4.94783897,1801.5,1801.2,0.1052967]
[1745685755534,10.49878304,1801.5,1801.2,0.1052967]
[1745685756266,10.18794407,1801.5,1801.2,0.1052967]
[1745685757146,6.32368224,1801.4,1801.2,0.1052967]
[1745685757542,0.7724,1801.4,1801.2,0.1052967]
[1745685759869,6.32365758,1801.4,1801.2,0.1052967]
[1745685760753,0.7724,1801.4,1801.2,0.1052967]
[1745685762984,6.32379004,1801.4,1801.2,0.1052967]
[1745685763189,6.1839251,1801.3,1801.2,0.1052967]
[1745685763681,5.5515461,1801.3,1801.2,0.1052967]
[1745685763990,6.32383097,1801.4,1801.2,0.1052967]
[1745685766257,12.32321506,1801.4,1801.2,0.1052967]
[1745685767867,5.5515461,1801.3,1801.2,0.1052967]
[1745685768387,12.32320724,1801.4,1801.2,0.1052967]
[1745685768587,1.23232072,1801.3,1801.2,0.1052967]
[1745685769385,6.78386682,1801.3,1801.2,0.1052967]
[1745685769588,1.23232072,1801.3,1801.2,0.1052967]
[1745685770386,6.78386682,1801.3,1801.2,0.1052967]
[1745685770752,1.23232072,1801.3,1801.2,0.1052967]
[1745685771191,12.32321343,1801.4,1801.2,0.1052967]
[1745685772806,4.638,1801.3,1801.2,0.1052967]
[1745685775114,10.9833461,1801.3,1801.2,0.1052967]
[1745685775403,6.34565431,1801.2,1801.1,0.05]
[1745685775703,12.3450384,1801.2,1801.1,0.05]
[1745685776207,12.65524077,1801.2,1801.1,0.05]
[1745685779282,6.30958646,1801.2,1801.1,5.60216256]
[1745685779670,6.30958646,1801.2,1801.1,0.05]
[1745685779874,5.99938409,1801.2,1801.1,0.05]
[1745685780394,6.30990846,1801.2,1801.1,0.05]
[1745685782412,11.86176277,1801.2,1801.1,0.05]
[1745685784283,13.33827697,1801.2,1801.1,0.05]
[1745685788021,13.33827697,1801.2,1801.1,0.15462296]
[1745685788219,13.33827697,1801.2,1801.1,0.05]
[1745685788402,16.33827697,1801.2,1801.1,0.15462296]
[1745685788583,16.33827697,1801.2,1801.1,0.05]
[1745685790123,16.33827697,1801.2,1801.1,0.15462296]
[1745685790493,16.33827697,1801.2,1801.1,0.05]
[1745685791119,33.01327697,1801.2,1801.1,0.15462296]
[1745685791415,33.01327697,1801.2,1801.1,0.05]
[1745685792389,5.55354731,1800.7,1800.4,4.07631338]
[1745685792724,4.639,1800.6,1800.4,0.7503]
[1745685792922,5.55401277,1800.5,1800.2,0.7503]
[1745685793127,5.55401277,1800.5,1800.1,0.05]
[1745685793620,12.32104776,1800.4,1800.1,0.05]
[1745685793817,6.76658409,1800.4,1800.1,0.05]
[1745685794581,6.76658409,1800.4,1800.1,5.60521063]
[1745685794812,5.99938409,1800.4,1800.1,5.60521063]
[1745685795009,7.23146061,1800.4,1800.1,0.05]
[1745685795507,12.78582419,1800.4,1800.1,0.05]
[1745685795710,7.23146061,1800.4,1800.1,0.05]
[1745685796021,12.78599022,1800.4,1800.1,0.05]
[1745685796324,5.55493834,1800.2,1800.1,0.05]
[1745685796623,20.13541638,1800.2,1800.1,0.05]
[1745685797832,20.13520199,1800.2,1800.1,0.05]
[1745685798445,20.90239199,1800.2,1800.1,0.05]
[1745685798730,24.90239199,1800.2,1800.1,0.05]
[1745685798937,24.59273626,1800.2,1800.1,0.05]
[1745685799301,24.90235121,1800.2,1800.1,0.05]
[1745685799613,24.90234963,1800.2,1800.1,0.05]
[1745685799814,25.58256383,1800.2,1800.1,0.05]
[1745685801607,25.5822718,1800.2,1800.1,0.05]
[1745685803418,26.30437423,1800.2,1800.1,0.05]
[1745685803774,5.55648163,1799.7,1799.6,0.4064594]
[1745685803918,21.20742808,1799.7,1799.6,0.4064594]
[1745685804265,21.51674942,1799.7,1799.6,0.4064594]
[1745685806153,21.9420751,1799.7,1799.6,0.4064594]
[1745685806556,25.9420751,1799.7,1799.6,0.4064594]
[1745685807941,26.6222893,1799.7,1799.6,0.4064594]
[1745685808256,30.1393211,1799.7,1799.6,0.4064594]
[1745685808466,29.1748211,1799.7,1799.6,0.4064594]
[1745685808631,29.8550353,1799.7,1799.6,1e-08]
[1745685808821,6.36632578,1799.2,1799.1,1e-08]
[1745685809025,5.55969326,1798.7,1798.4,0.8272]
[1745685809225,4.641,1798.6,1798.4,0.8272]
[1745685809426,4.641,1798.6,1798.5,0.11033138]
[1745685809858,4.641,1798.6,1798.5,5.67052042]
[1745685810058,4.641,1798.6,1798.5,0.11033138]
[1745685810246,5.99938409,1798.7,1798.5,0.11033138]
[1745685810443,4.642,1798.6,1798.5,0.11033138]
[1745685811261,5.99938409,1798.7,1798.5,0.11033138]
[1745685811457,4.642,1798.6,1798.5,0.11033138]
[1745685811658,4.642,1798.6,1798.5,5.67052042]
[1745685811859,4.642,1798.6,1798.5,0.11033138]
[1745685812166,5.99938409,1798.7,1798.5,0.11033138]
[1745685812463,4.642,1798.6,1798.5,0.11033138]
[1745685813567,16.687,1799.2,1798.5,6.3200143]
[1745685813734,4.643,1799.1,1798.8,5.5590965]
[1745685813928,4.643,1799.1,1798.7,6.38658181]
[1745685814128,5.27521383,1799.1,1798.7,6.38653542]
[1745685814496,10.83360467,1799.1,1798.8,0.12271108]
[1745685814765,5.27521383,1799.1,1798.8,0.12271108]
[1745685815138,5.55895269,1798.9,1798.8,0.12271108]
[1745685815460,3.6802142,1798.9,1798.3,0.7714]
[1745685815762,5.55983254,1798.7,1798.3,0.7714]
[1745685816075,10.64238409,1798.6,1798.3,0.7714]
[1745685816240,16.20227978,1798.6,1798.3,0.7714]
[1745685816564,10.64238409,1798.6,1798.3,0.7714]
[1745685817181,16.20230465,1798.6,1798.3,0.7714]
[1745685817345,17.16557221,1798.6,1798.3,0.7714]
[1745685817656,11.60565165,1798.6,1798.3,0.7714]
[1745685818278,4.643,1798.5,1798.4,5.5603565]
[1745685818478,5.99938409,1799.4,1798.4,0.6802142]
[1745685818664,4.643,1799.6,1799.1,0.6802142]
[1745685818990,4.643,1799.6,1799.4,6.36170317]
[1745685819292,4.643,1799.6,1799.4,6.36149271]
[1745685819794,4.643,1799.6,1799.5,5.55709919]
[1745685820982,5.99938409,1799.8,1799.4,6.36153912]
[1745685821173,4.643,1799.7,1799.4,6.36153912]
[1745685821373,4.643,1799.7,1799.6,5.55679039]
[1745685821574,4.643,1799.7,1799.4,6.36150859]
[1745685821883,4.643,1799.7,1799.5,5.55691752]
[1745685822057,4.643,1799.7,1799.4,6.36154629]
[1745685822263,5.66292405,1799.7,1799.4,0.8043]
[1745685822461,4.643,1799.7,1799.4,6.36170197]
[1745685823466,4.643,1799.7,1799.5,5.55708046]
[1745685824583,4.643,1799.7,1799.4,6.36152899]
[1745685824781,10.64238409,1799.7,1799.4,6.36152899]
[1745685824985,10.64238409,1799.7,1799.5,5.55703879]
[1745685826906,10.64238409,1799.7,1799.5,11.11389274]
[1745685827100,10.64238409,1799.7,1799.6,6.35349039]
[1745685827101,5.99938409,1799.7,1799.6,6.35349039]
[1745685827294,5.99938409,1800.1,1799.7,5.55624976]
[1745685827471,4.711,1800.0,1799.8,5.55601187]
[1745685828006,4.711,1800.0,1799.8,5.55598255]
[1745685828218,5.78203841,1800.0,1799.6,0.7967]
[1745685828379,5.5559849,1799.9,1799.6,0.7967]
[1745685829065,5.5559849,1799.9,1799.6,0.79048832]
[1745685829267,12.14434872,1800.0,1799.6,0.79048832]
[1745685829794,12.14434872,1800.0,1799.6,6.34724372]
[1745685830105,0.8924644,1799.9,1799.6,6.34724372]
[1745685830708,5.99938409,1799.9,1799.7,5.5564004]
[1745685831070,5.99938409,1799.9,1799.6,6.34709987]
[1745685831281,5.99938409,1799.9,1799.6,6.3470679]
[1745685831480,5.99938409,1799.9,1799.6,11.90362436]
[1745685831923,5.99938409,1799.9,1799.8,5.5561729]
[1745685832417,10.70938409,1799.9,1799.7,5.55629243]
[1745685833196,11.7803225,1799.9,1799.6,0.79048832]
[1745685833398,17.33630846,1799.9,1799.5,5.55694448]
[1745685833705,17.33630846,1799.9,1799.5,5.54647869]
[1745685834204,11.7803225,1799.9,1799.5,5.54647869]
[1745685834501,17.33621647,1799.9,1799.5,5.54647869]
[1745685834799,0.8925644,1799.8,1799.5,5.54647869]
[1745685835106,0.8925644,1799.8,1799.4,6.35278763]
[1745685835611,5.55695534,1799.6,1799.2,5.5578755]
[1745685835904,5.55695534,1799.6,1798.6,5.55968577]
[1745685835905,10.26720915,1799.5,1798.8,0.8329]
[1745685836072,11.55694113,1799.4,1798.9,5.55875309]
[1745685836274,12.62787954,1799.4,1799.0,5.55862742]
[1745685836505,6.36689704,1799.3,1798.8,0.8329]
[1745685836716,5.55814425,1799.2,1798.8,6.39210042]
[1745685836873,4.71,1799.1,1798.8,0.8329]
[1745685837069,10.70938409,1799.1,1798.8,0.8329]
[1745685837277,11.60194849,1799.1,1798.8,0.8329]
[1745685837669,11.60194849,1799.1,1798.6,0.8329]
[1745685837670,17.16039288,1799.1,1798.6,0.8329]
[1745685837914,11.60194849,1799.1,1798.6,0.8329]
[1745685838100,17.16043416,1799.1,1798.7,5.5594488]
[1745685838612,11.60194849,1799.1,1798.7,5.5594488]
[1745685838798,11.60194849,1799.1,1798.7,5.55936282]
[1745685839003,10.70938409,1799.1,1798.7,0.6802142]
[1745685839810,10.70938409,1799.1,1798.8,5.55905139]
[1745685839967,10.70938409,1799.1,1798.9,5.55889786]
[1745685840626,10.70938409,1799.1,1798.9,5.55881291]
[1745685841150,10.70938409,1799.1,1799.0,6.37674369]
[1745685841553,10.70938409,1799.1,1799.0,0.8181]
[1745685841726,11.7803225,1799.1,1798.8,6.3772215]
[1745685842051,11.7803225,1799.1,1798.8,6.37711911]
[1745685842531,11.33944525,1799.1,1798.8,0.8181]
[1745685843044,5.78093841,1799.1,1798.8,0.8181]
[1745685843349,0.57809384,1799.0,1798.8,0.8181]
[1745685843716,0.57809384,1799.0,1798.8,6.37724337]
[1745685845448,0.57809384,1799.0,1798.8,0.8181]
[1745685847775,4.71,1799.1,1798.8,0.8181]
[1745685848076,4.71,1799.1,1799.0,5.55864369]
[1745685848941,4.71,1799.1,1798.9,5.55877624]
[1745685849148,4.71,1799.1,1799.0,5.55864369]
[1745685849978,4.711,1799.2,1799.1,5.55817766]
[1745685850175,4.711,1799.2,1799.1,6.11399543]
[1745685850688,4.711,1799.2,1799.1,6.90999543]
[1745685852989,4.711,1799.2,1799.1,6.35417766]
[1745685855101,5.99938409,1799.7,1799.6,5.55679039]
[1745685855251,4.711,1799.7,1799.6,6.35279039]
[1745685857715,31.24452522,1800.5,1800.0,5.55555555]
[1745685857903,4.729,1800.4,1800.1,5.55496988]
[1745685858288,5.0389683,1800.4,1800.1,5.55496988]
[1745685858700,5.0389683,1800.4,1800.0,5.55537757]
[1745685859799,10.28334478,1800.4,1800.0,5.55537757]
[1745685860016,5.45039393,1800.4,1800.0,5.55537757]
[1745685860218,11.00487198,1800.4,1799.7,6.33822289]
[1745685860419,0.7532,1800.2,1799.8,5.55595552]
[1745685860626,6.30813859,1800.2,1799.8,5.55595552]
[1745685860785,6.30813859,1800.2,1799.7,0.7819]
[1745685860992,0.63081386,1800.1,1799.7,5.5563292]
[1745685861192,4.728,1800.0,1799.8,5.55602112]
[1745685862931,4.728,1800.0,1799.7,5.55620984]
[1745685863223,4.728,1800.0,1799.8,5.55611793]
[1745685863934,4.728,1800.0,1799.5,6.33896083]
[1745685864216,4.728,1800.0,1799.9,5.55586421]
[1745685870003,0.7512,1799.8,1799.1,0.7897]
[1745685870328,0.7512,1799.5,1799.1,0.7897]
[1745685870518,10.28454432,1799.4,1798.9,5.55882352]
[1745685870691,4.727,1799.4,1799.0,5.55861614]
[1745685871107,10.28454364,1799.4,1798.9,6.6706252]
[1745685871626,4.727,1799.4,1798.6,0.7897]
[1745685871830,10.28458436,1799.4,1798.9,5.55892464]
[1745685872344,10.28458436,1799.4,1799.0,5.55859248]
[1745685872704,4.727,1799.4,1799.0,0.7897]
[1745685872904,4.727,1799.4,1799.3,5.55771688]
[1745685873146,4.727,1799.4,1799.3,6.66928729]
[1745685873644,4.727,1799.4,1799.3,5.55771688]
[1745685878640,4.727,1799.4,1799.3,6.31191688]
[1745685881757,4.727,1799.4,1799.1,5.5582186]
[1745685881962,4.727,1799.4,1799.0,5.55840431]
[1745685882268,4.727,1799.4,1799.0,5.55848047]
[1745685882435,4.727,1799.4,1799.0,5.55846039]
[1745685882847,4.727,1799.4,1799.1,5.5583292]
[1745685883051,6.27913479,1799.4,1799.0,5.55847362]
[1745685883225,6.27913479,1799.4,1799.1,5.55832897]
[1745685883561,6.27913479,1799.4,1799.2,5.55800028]
[1745685883926,4.727,1799.4,1799.2,5.55800028]
[1745685885273,4.727,1799.4,1799.3,6.37321688]
[1745685885752,16.685,1799.6,1799.5,5.55709919]
[1745685890672,4.8,1799.8,1799.7,5.55621915]
[1745685890879,4.8,1799.8,1799.7,6.31991915]
[1745685891037,4.8,1799.8,1799.7,7.5075791]
[1745685892171,5.619,1799.8,1799.6,5.55668032]
[1745685892863,4.8,1799.8,1799.6,5.55654702]
[1745685894395,4.8,1799.8,1799.7,5.55648163]
[1745685898273,4.8,1799.8,1799.7,6.37778163]
[1745685898583,4.8,1799.8,1799.7,7.57123661]
[1745685899006,5.99938409,1800.2,1800.1,5.55524693]
[1745685899312,4.8,1800.2,1800.1,5.55524693]
[1745685901351,4.8,1800.2,1800.0,5.5554368]
[1745685901637,5.6179,1800.2,1799.9,5.55581523]
[1745685902729,5.6179,1800.2,1799.7,0.8213]
[1745685902900,5.6179,1800.2,1800.0,5.55542346]
[1745685903535,5.6179,1800.2,1799.9,5.55571589]
[1745685905242,5.6179,1800.2,1799.8,5.55591536]
[1745685905397,5.6179,1800.2,1799.9,5.55583254]
[1745685907206,11.17284078,1800.2,1799.8,5.5560422]
[1745685907714,5.6179,1800.2,1799.8,5.55595284]
[1745685908037,5.6179,1800.2,1799.9,5.5558605]
[1745685910376,5.6179,1800.2,1799.8,5.55592679]
[1745685910578,5.6179,1800.2,1799.8,11.11185358]
[1745685911073,5.6179,1800.2,1799.8,11.1118535]
[1745685911478,11.17287251,1800.2,1799.8,5.55592671]
[1745685912586,5.6179,1800.2,1799.8,5.55592671]
[1745685913250,5.6179,1800.2,1799.9,5.55555834]
[1745685913767,4.8,1800.2,1800.0,5.5552595]
[1745685913940,4.8,1800.2,1800.1,5.55524693]
[1745685918868,4.8,1800.2,1800.0,5.55533017]
[1745685919075,5.11132455,1800.2,1800.0,11.11065332]
[1745685919574,4.8,1800.2,1800.1,5.55524693]
[1745685920447,5.11132455,1800.2,1800.1,5.55524693]
[1745685921352,4.8,1800.2,1800.1,5.55524693]
[1745685922047,10.86618861,1800.2,1799.8,5.5559677]
[1745685922258,1.11362455,1800.1,1799.8,5.5559677]
[1745685922459,1.11362455,1800.1,1799.9,5.5557569]
[1745685922954,0.8023,1800.1,1799.9,5.5557569]
[1745685923183,0.8023,1800.1,1800.0,5.55555555]
[1745685923483,5.6023,1800.2,1800.0,5.55555555]
[1745685923890,4.8,1800.2,1800.0,5.55536008]
[1745685924079,4.8,1800.2,1800.1,5.55524693]
[1745685924495,5.1114679,1800.2,1800.1,5.55524693]
[1745685927059,5.1114679,1800.2,1800.0,5.55550593]
[1745685927682,22.2114679,1800.2,1800.0,5.55550593]
[1745685927958,0.3114679,1800.1,1800.0,5.55550593]
[1745685928581,0.3114679,1800.1,1799.9,5.55585701]
[1745685928887,0.3114679,1800.1,1799.7,0.7856]
[1745685929067,0.3114679,1800.1,1799.8,5.55587319]
[1745685929269,0.3114679,1800.0,1799.9,5.55586421]
[1745685929470,0.3114679,1800.0,1799.8,5.55587319]
[1745685929792,0.3114679,1799.9,1799.7,5.55634969]
[1745685929994,0.3114679,1799.9,1799.8,5.5561729]
[1745685930159,0.3114679,1799.9,1799.7,5.55628559]
[1745685930765,0.7772,1800.1,1799.7,5.55628559]
[1745685930963,6.33248501,1800.1,1799.7,5.55628559]
[1745685931233,0.7772,1800.1,1799.8,5.55611752]
[1745685931523,0.31161366,1800.0,1799.7,5.556308]
[1745685931887,0.31161366,1800.0,1799.6,6.31832003]
[1745685932123,0.31161366,1800.0,1799.7,5.55637102]
[1745685932321,0.31161366,1799.9,1799.7,5.55637102]
[1745685932524,5.05961366,1799.9,1799.7,5.55637102]
[1745685933025,4.748,1799.9,1799.7,5.55637102]
[1745685937933,4.748,1799.9,1799.8,5.5561729]
[1745685938128,4.748,1799.9,1799.7,5.55637102]
[1745685938336,5.05941494,1799.9,1799.7,5.55637102]
[1745685938945,4.748,1799.9,1799.7,5.55637102]
[1745685939849,5.05941494,1799.9,1799.7,5.55637102]
[1745685940709,4.748,1799.9,1799.7,5.55637102]
[1745685941646,4.748,1799.9,1799.6,1.393532]
[1745685941947,4.748,1799.9,1799.7,5.55647143]
[1745685942242,4.748,1799.9,1799.6,6.95014089]
[1745685942431,4.748,1799.9,1799.8,5.5561729]
[1745685943145,21.848,1800.2,1800.1,5.55524693]
[1745685943349,21.848,1800.2,1800.1,6.74392718]
[1745685944953,21.848,1800.2,1800.1,7.54892718]
[1745685945314,17.1,1800.2,1800.1,7.54892718]
[1745685950398,17.1,1800.2,1800.1,10.54892718]
[1745685955206,4.712,1800.5,1800.4,6.36582126]
[1745685955505,0.5,1800.6,1800.5,5.55401277]
[1745685955704,1.0,1800.6,1800.5,5.55401277]
[1745685956204,1.0,1800.6,1800.5,6.23541853]
[1745685956395,1.0,1800.6,1800.5,7.04691853]
[1745685960379,1.0,1800.6,1800.5,6.36551277]
[1745685960579,1.0,1800.6,1800.5,7.98351365]
[1745685964299,1.0,1800.6,1800.5,11.66491941]
[1745685964708,1.0,1800.6,1800.5,12.0861895]
[1745685965434,0.5,1800.6,1800.5,12.0861895]
[1745685969616,4.761,1800.9,1800.8,5.55308751]
[1745685969932,4.761,1800.9,1800.8,6.66372446]
[1745685970137,4.761,1800.9,1800.8,5.55308751]
[1745685972903,0.7955,1800.8,1800.6,5.55370084]
[1745685973439,0.7955,1800.8,1800.5,5.55372225]
[1745685973805,0.7955,1800.8,1800.6,5.55354036]
[1745685977349,0.7955,1800.8,1800.7,5.5533959]
[1745685977645,4.761,1800.9,1800.7,5.55325525]
[1745685978244,5.07238591,1800.9,1800.7,5.55325525]
[1745685979143,5.07238591,1800.9,1800.8,5.55308751]
[1745685979711,4.761,1800.9,1800.8,5.55308751]
[1745685983872,4.761,1800.9,1800.8,6.74190179]
[1745685986466,0.05,1800.9,1800.8,6.74190179]
[1745685987472,0.05,1800.9,1800.8,5.55308751]
[1745685999755,0.05,1800.9,1800.8,9.396706]
[1745686000288,0.05,1800.9,1800.8,9.34118751]
[1745686001497,0.05,1800.9,1800.8,9.39670404]
[1745686003312,0.05,1800.9,1800.8,9.34118751]
[1745686003525,0.05,1800.9,1800.8,10.89877236]
[1745686004006,0.05,1800.9,1800.8,10.95428894]
[1745686005086,0.05,1800.9,1800.8,10.89877236]
[1745686006022,0.05,1800.9,1800.8,10.95429036]
[1745686007299,0.05,1800.9,1800.8,10.89877236]
[1745686007520,0.05,1800.9,1800.8,10.95429006]
[1745686008327,0.05,1800.9,1800.8,10.89877236]